[Event "3rd Tal Heraklion-IM 2022"]
[Site "Heraklion"]
[Date "2022.04.28"]
[Round "3.3"]
[White "Bracker, Arne"]
[Black "Sandalakis, Nikolaos"]
[Result "1-0"]
[ECO "B31"]
[WhiteElo "2276"]
[BlackElo "2240"]
[Annotator "TA"]
[PlyCount "141"]
[EventDate "2022.04.18"]
[EventType "tourn"]
[EventCountry "GRE"]
[SourceTitle "playchess.com"]
[Source "ChessBase"]
[SourceQuality "1"]
[TimeControl "40/5400+30:1800+30"]

{[%evp 19,141,14,22,8,17,12,17,0,12,8,16,24,27,12,20,18,85,93,135,99,156,79,99,75,67,16,18,3,8,3,6,7,7,0,0,-63,-54,-46,-55,-63,-63,-63,-63,-63,0,0,0,0,-17,-62,-39,-47,-58,-55,0,0,160,160,160,160,180,175,168,0,295,221,221,189,191,48,300,300,361,273,279,183,203,162,254,249,231,252,274,256,225,155,351,351,346,336,295,320,320,314,356,358,360,339,461,423,527,527,1820,1820,1820,1820,1820,1820,1820,1820,1813,1813,1813,1813,1784,1784,1682,1667,1619,1063,1047,1033,775,761]} 1. e4 {[%emt 0:00:07]} c5 {[%emt 0:00:05]} 2. Nf3 {[%emt 0:00:29]} Nc6 {[%emt 0:00:15]} 3. Bb5 {[%emt 0:00:19]} Nf6 {[%emt 0:00:11][%cal Bg8f6,Bf6e8,Be8c7,Bc7e6,Be6d4][%mdl 32]} 4. Nc3 {[%emt 0:00:44]} g6 {[%emt 0:00:20]} 5. O-O {[%emt 0:07:52]} Bg7 {[%emt 0:00:59]} 6. h3 {[%emt 0:02:53]} O-O {[%emt 0:00:57]} 7. Re1 {[%emt 0:08:16]} Ne8 {[%emt 0:06:23]} 8. Bxc6 {[%emt 0:18:35]} dxc6 {[%emt 0:01:03]} 9. e5 {[%emt 0:00:47]} Nc7 {[%emt 0:12:37]} 10. d3 {[%emt 0:00:27]} Ne6 {[%emt 0:00:53]} 11. Be3 {[%emt 0:08:52] B31: Sicilian: 2...Nc6 3 Bb5 g6.} Nd4 {[%emt 0:07:48]} 12. Bf4 {[%emt 0:01:11]} b6 {[%emt 0:08:53]} 13. Ne4 {[%emt 0:03:53] The position is equal.} Be6 {[%emt 0:08:58]} 14. b3 {[%emt 0:07:14]} a5 {[%emt 0:12:15]} 15. a4 {[%emt 0:00:36]} h6 {[%emt 0:05:23] [#]} 16. Ned2 $146 {[%emt 0:08:09]} ({Predecessor:} 16. Nxd4 cxd4 17. Bg3 Kh7 18. Nd2 Bd5 19. Qg4 c5 20. Bf4 Rc8 {½-½ (20) Canizares Cuadra,P (2351)-Wosch,A (2375) LSS email 2020}) 16... Qd5 {[%emt 0:07:01]} 17. Bh2 {[%emt 0:01:38]} f5 {[%emt 0:07:14]} (17... Rfd8 $11 {keeps the balance.}) 18. exf6 $1 $16 {[%emt 0:02:21]} Bxf6 {[%emt 0:00:10]} 19. Be5 {[%emt 0:08:39]} Rae8 {[%emt 0:04:10]} (19... Kg7 $142) 20. c4 {[%emt 0:02:26]} (20. Nxd4 $142 cxd4 21. Bc7) 20... Qd7 {[%emt 0:01:26]} 21. Nxd4 {[%emt 0:00:44]} (21. Bxd4 {is more complex.} Bxd4 22. Nxd4 Qxd4 23. Rxe6 Rxf2 24. Kh1) 21... cxd4 {[%emt 0:01:01] [#]} 22. Bg3 {[%emt 0:00:45]} (22. Bc7 $1 $14) 22... c5 $11 {[%emt 0:05:34]} 23. Ne4 {[%emt 0:01:39]} Bg7 {[%emt 0:02:12]} 24. Ra2 {[%emt 0:00:13]} Qc6 {[%emt 0:00:21]} 25. Rae2 {[%emt 0:00:48][%cal Oe4c5] White wants to play Nxc5!} Bc8 {[%emt 0:00:15]} 26. f3 {[%emt 0:00:45]} Bb7 {[%emt 0:00:19]} 27. Nf2 {[%emt 0:04:19] [#]} (27. Nd2 $11) 27... Rxf3 $1 $15 {[%emt 0:01:34]} 28. gxf3 {[%emt 0:02:27]} Qxf3 {[%emt 0:00:05][%csl Gb7][%cal Rf3g2]} 29. Ne4 {[%emt 0:00:59]} Bxe4 {[%emt 0:00:09][%mdl 64] Remove Defender} 30. dxe4 {[%emt 0:00:32]} Qxg3+ {[%emt 0:00:28]} 31. Rg2 {[%emt 0:00:08]} Qh4 {[%emt 0:03:42]} (31... Qxh3 $15 32. Rxg6 Kh7) 32. Rxg6 $11 {[%emt 0:02:55] Hoping for Re2.} Kh7 {[%emt 0:00:03]} 33. Rg4 {[%emt 0:02:26]} Qxh3 {[%emt 0:00:12] Threatens to win with ...Be5.} 34. Rf1 {[%emt 0:00:28][%cal Be1f1,Bf1f7,Bf7f3][%mdl 32]} d3 {[%emt 0:02:36] ( -> ...Bd4+)} (34... Be5 35. Rf7+ Kh8 36. Qf3 Qxf3 37. Rxf3 $11) 35. Rf7 {[%emt 0:00:57]} Rg8 {[%emt 0:00:01]} 36. e5 $1 {[%emt 0:01:03]} Qe3+ {[%emt 0:01:36]} (36... Kh8 $1 $15 37. Qf3 (37. Rxe7 $2 h5 $19) 37... Qxf3 38. Rxf3 Rd8) 37. Kg2 {[%emt 0:00:22] The board is on fire.} Kh8 $2 {[%emt 0:00:55]} (37... d2 $1 $11) 38. Rf3 $16 {[%emt 0:00:31]} Qxe5 {[%emt 0:00:51]} 39. Qxd3 {[%emt 0:00:13]} Qb2+ {[%emt 0:00:32]} 40. Kh3 {[%emt 0:00:00][%mdl 1024] White has strong compensation.} (40. Rf2 $6 Qc3 41. Qxc3 Bxc3 $16) 40... Qa1 {[%emt 0:00:00] ...Qh1+ is the strong threat.} 41. Kg2 {[%emt 0:06:38] Prevents Qh1+.} (41. Rf7 Qh1+ 42. Kg3 Qh5 $11) (41. Rf1 $18 Qe5 42. Qf5) 41... Qc1 {[%emt 0:06:24][%mdl 8192]} (41... Qb2+ $1 $11 42. Kh3 (42. Rf2 Qc3 $16) 42... Qa1) 42. Qe3 {[%emt 0:04:48]} (42. Rf7 Qe1 $16) 42... Qc2+ {[%emt 0:03:30]} 43. Rf2 {[%emt 0:01:16]} Qd1 {[%emt 0:01:50]} 44. Rg6 {[%emt 0:04:20]} (44. Rg3 $1 $18) 44... Qb1 $2 {[%emt 0:04:42][%mdl 8192] [#]} ({Better is} 44... Qh5 $14 45. Qe6 Qxg6+ 46. Qxg6 Bf6 47. Qxg8+ (47. Rxf6 $2 exf6 48. Qxg8+ Kxg8 $19) 47... Kxg8) 45. Rg3 $1 $18 {[%emt 0:03:51]} ({Not} 45. Qe6 Qxg6+ 46. Qxg6 Bf6 47. Qxg8+ (47. Rxf6 $2 exf6 48. Qxg8+ Kxg8 $19) 47... Kxg8 $16) 45... e5 {[%emt 0:01:09]} 46. Kh2 {[%emt 0:01:45]} Qd1 {[%emt 0:00:27]} 47. Rh3 {[%emt 0:03:26]} Qd6 {[%emt 0:03:44]} 48. Rd2 {[%emt 0:01:30]} Qc6 {[%emt 0:03:04]} (48... Qe6 $142) 49. Rd5 $40 {[%emt 0:02:18][%mdl 128] White goes for the king.} Qg6 {[%emt 0:01:43] [#]} 50. Rg3 $1 {[%emt 0:00:16]} Qc2+ {[%emt 0:01:02]} 51. Rd2 {[%emt 0:00:08]} Qf5 {[%emt 0:01:34]} 52. Rd6 {[%emt 0:00:42]} Qc2+ $2 {[%emt 0:01:45] This costs Black the game.} (52... Rf8 $16 53. Rxb6 e4) 53. Qd2 {[%emt 0:01:32]} Qxd2+ {[%emt 0:01:55]} 54. Rxd2 {[%emt 0:00:01][%mdl 4096] Endgame KRR-KRB} e4 {[%emt 0:00:10] And now ...Be5 would win.} 55. Rd6 {[%emt 0:00:36]} Re8 {[%emt 0:00:59] Strongly threatening ...e3.} 56. Kg2 {[%emt 0:00:56]} ({Avoid the trap} 56. Rxb6 $2 e3 57. Rg1 e2 $19) 56... Re7 {[%emt 0:04:27]} 57. Kf1 {[%emt 0:00:37]} ({Resist} 57. Rxb6 Kh7 58. Rh3 Kg8 $18) 57... Kh7 {[%emt 0:00:31] aiming for ...Be5.} 58. Rxb6 {[%emt 0:00:57]} Be5 {[%emt 0:00:35]} 59. Rgg6 {[%emt 0:00:18] White is clearly winning.} Bf4 {[%emt 0:00:19]} 60. Rge6 {[%emt 0:00:26]} Rf7 {[%emt 0:00:31]} 61. Rf6 {[%emt 0:01:00]} Rxf6 {[%emt 0:00:29]} 62. Rxf6 {[%emt 0:00:02] KR-KB} Bd2 {[%emt 0:00:27]} 63. Rf5 {[%emt 0:01:09]} Bb4 {[%emt 0:00:15]} 64. Re5 {[%emt 0:00:40]} Kg6 {[%emt 0:00:07]} 65. Kg2 {[%emt 0:00:34]} Kf6 {[%emt 0:00:56]} 66. Rxe4 {[%emt 0:00:06]} Kf5 {[%emt 0:00:08]} 67. Kf3 {[%emt 0:03:01]} Bc3 {[%emt 0:01:05]} 68. Re7 {[%emt 0:01:19]} Bb4 {[%emt 0:00:12]} 69. Rd7 {[%emt 0:01:06]} Ba3 {[%emt 0:00:57]} 70. Rd5+ {[%emt 0:00:08]} Kg6 {[%emt 0:00:28]} 71. Kg4 {[%emt 0:00:07] Weighted Error Value: White=0.25 (precise) /Black=0.41} 1-0

[Event "3rd Tal Heraklion-IM 2022"]
[Site "Heraklion"]
[Date "2022.04.28"]
[Round "3.4"]
[White "Langrock, Hannes"]
[Black "Lirindzakis, Timotheos"]
[Result "1/2-1/2"]
[ECO "D02"]
[WhiteElo "2351"]
[BlackElo "2164"]
[Annotator "TA"]
[PlyCount "71"]
[EventDate "2022.04.18"]
[EventType "tourn"]
[EventCountry "GRE"]
[SourceTitle "playchess.com"]
[Source "ChessBase"]
[SourceQuality "1"]
[TimeControl "40/5400+30:1800+30"]

{[%evp 9,71,0,22,5,19,21,36,18,23,0,0,0,0,-26,8,6,4,4,27,5,2,0,0,0,0,0,23,0,8,10,21,12,27,22,35,31,34,2,33,34,33,41,28,28,29,-8,61,55,57,55,64,54,69,9,9,9,8,0,0,0,2,0,2,0]} 1. d4 {[%emt 0:00:04]} Nf6 {[%emt 0:00:29]} 2. Nf3 {[%emt 0:00:12]} d5 {[%emt 0:01:40]} 3. g3 {[%emt 0:00:13]} c6 {[%emt 0:02:20]} 4. Bg2 {[%emt 0:00:27]} Bg4 {[%emt 0:01:44]} 5. c4 {[%emt 0:01:40]} e6 {[%emt 0:02:01]} 6. h3 {[%emt 0:00:40] D02: 1 d4 d5 2 Nf3 sidelines, including 2...Nf6 3 g3 and 2...Nf6 3 Bf4.} Bh5 {[%emt 0:01:49]} 7. O-O {[%emt 0:04:51]} Be7 {[%emt 0:02:18]} 8. Ne5 {[%emt 0:09:49] White is slightly better.} Nbd7 {[%emt 0:11:57]} 9. g4 {[%emt 0:03:24]} Bg6 {[%emt 0:02:33]} 10. Nxg6 {[%emt 0:00:59]} hxg6 {[%emt 0:00:26]} 11. Qd3 {[%emt 0:02:49]} O-O {[%emt 0:04:45]} 12. Nc3 {[%emt 0:01:35]} dxc4 {[%emt 0:08:01]} 13. Qxc4 {[%emt 0:00:21]} e5 {[%emt 0:00:54] [#]} 14. Rd1 $146 {[%emt 0:04:57]} ({Predecessor:} 14. dxe5 Nxe5 15. Qb3 Qc7 16. f4 Ned7 17. e4 Nc5 18. Qc2 Ne6 19. e5 Nd7 20. Ne2 {1-0 (67) Harikrishna,P (2758)-Adams,M (2761) Shenzhen 2017}) 14... Nb6 {[%emt 0:05:22]} 15. Qd3 {[%emt 0:04:45]} (15. Qb3 {with more complications.} exd4 16. e3 Qc7 17. Rxd4 Rad8 18. Ne2) 15... exd4 {[%emt 0:11:21]} 16. Qxd4 {[%emt 0:00:11]} Qxd4 {[%emt 0:00:19]} 17. Rxd4 {[%emt 0:00:05]} Rfd8 {[%emt 0:06:45]} 18. Be3 {[%emt 0:05:09]} Rxd4 {[%emt 0:03:11]} 19. Bxd4 {[%emt 0:00:06]} Rd8 {[%emt 0:00:41]} 20. Rd1 {[%emt 0:03:49]} Nc4 {[%emt 0:10:56]} 21. Bxa7 {[%emt 0:11:42]} Nxb2 {[%emt 0:05:17]} 22. Rb1 {[%emt 0:09:19]} Rd2 {[%emt 0:02:50]} 23. g5 {[%emt 0:07:35] aiming for Be3.} Nd7 {[%emt 0:04:39]} 24. Be3 {[%emt 0:02:01]} Rc2 {[%emt 0:00:12] [#]} 25. Be4 $1 {[%emt 0:01:01]} Rxc3 {[%emt 0:00:52]} 26. Rxb2 {[%emt 0:00:06]} b5 {[%emt 0:03:46]} 27. a4 {[%emt 0:10:39]} Ba3 {[%emt 0:01:17]} ({Resist} 27... bxa4 28. Rb7 $16) (27... Nc5 $11 28. Bxc5 Rxc5) 28. Rd2 $14 {[%emt 0:03:25]} Nc5 {[%emt 0:02:12]} 29. Bxc6 {[%emt 0:00:20]} bxa4 {[%emt 0:01:14]} 30. Rd8+ {[%emt 0:01:06]} Kh7 {[%emt 0:00:19]} 31. Bd5 {[%emt 0:04:19] White is more active.} ({Better is} 31. Ra8 $14) 31... Ne6 $11 {[%emt 0:01:52] The position is equal.} 32. Rd7 {[%emt 0:00:32]} Bc1 {[%emt 0:00:38]} 33. Rxf7 {[%emt 0:06:00]} Bxe3 {[%emt 0:01:03]} 34. Bxe6 {[%emt 0:00:26]} Bxg5 {[%emt 0:00:20]} 35. Ra7 {[%emt 0:00:34]} a3 {[%emt 0:00:26]} 36. Kg2 {[%emt 0:00:06] Weighted Error Value: White=0.12 (very precise) /Black=0.11 (very precise)} 1/2-1/2

[Event "3rd Tal Heraklion-IM 2022"]
[Site "Heraklion"]
[Date "2022.04.28"]
[Round "3.5"]
[White "Peng, Li Min"]
[Black "Milonakis, Georgios"]
[Result "1/2-1/2"]
[ECO "D35"]
[WhiteElo "2517"]
[BlackElo "2215"]
[Annotator "TA"]
[PlyCount "100"]
[EventDate "2022.04.18"]
[EventType "tourn"]
[EventCountry "GRE"]
[SourceTitle "playchess.com"]
[Source "ChessBase"]
[SourceQuality "1"]
[TimeControl "40/5400+30:1800+30"]

{[%evp 17,100,20,26,19,21,22,24,12,54,51,62,20,43,9,41,35,45,28,100,99,57,61,156,46,52,41,81,82,159,152,145,6,10,0,0,0,-9,-141,-131,-115,-137,-104,-136,-160,-151,-252,-12,-135,-81,-138,-43,-33,7,-56,14,16,71,-15,107,0,8,8,8,0,0,0,0,0,69,61,44,64,106,0,254,260,1112,359,296,-437,-410,-1333,-1350,-1350,-1341]} 1. d4 {[%emt 0:08:59]} Nf6 {[%emt 0:00:24]} 2. c4 {[%emt 0:00:13]} e6 {[%emt 0:00:08]} 3. Nc3 {[%emt 0:00:12]} d5 {[%emt 0:00:35]} 4. cxd5 {[%emt 0:00:05]} exd5 {[%emt 0:00:16]} 5. Bg5 {[%emt 0:00:05]} Be7 {[%emt 0:00:26]} 6. e3 {[%emt 0:00:10]} c6 {[%emt 0:00:25]} 7. Bd3 {[%emt 0:00:13]} Nbd7 {[%emt 0:01:13]} 8. Nge2 {[%emt 0:00:10]} Nh5 {[%emt 0:09:43] 8...Nf8 is the modern continuation.} 9. Bxe7 {[%emt 0:00:06]} Qxe7 {[%emt 0:00:05]} 10. Qd2 {[%emt 0:00:01] D35: Queen's Gambit Declined: Exchange Variation.} Nb6 {[%emt 0:02:28]} 11. O-O {[%emt 0:01:08]} O-O {[%emt 0:01:08]} 12. f3 {[%emt 0:00:45] [#] White has an edge.} Nc4 $146 {[%emt 0:14:42]} ({Predecessor:} 12... Qg5 13. Rad1 Re8 14. e4 Qxd2 15. Rxd2 dxe4 16. fxe4 Nf6 17. Nf4 Be6 18. e5 Nfd5 19. Nxe6 Rxe6 {½-½ (81) Friedel,J (2561)-Soto Hernandez,H (2457) Merida 2017}) 13. Bxc4 {[%emt 0:00:06]} dxc4 {[%emt 0:00:03]} 14. g4 {[%emt 0:01:41]} Nf6 {[%emt 0:00:21]} 15. Ng3 {[%emt 0:00:57]} b5 {[%emt 0:07:05]} 16. e4 {[%emt 0:03:12][%cal Be3e4,Be4e5][%mdl 32]} Rd8 {[%emt 0:06:14]} 17. Rad1 {[%emt 0:00:11]} g6 {[%emt 0:06:26]} (17... h6 $11) 18. e5 $16 {[%emt 0:02:36]} Ne8 {[%emt 0:08:13]} 19. Nce4 {[%emt 0:02:42] Inhibits c5.} Be6 {[%emt 0:06:25]} ({Better is} 19... Qh4 $1 $14) 20. Qf4 {[%emt 0:09:48]} (20. Qh6 $1 $16) 20... Qh4 $14 {[%emt 0:03:27]} 21. Rf2 {[%emt 0:05:05]} Rd5 {[%emt 0:03:34]} 22. Nf1 {[%emt 0:00:32]} b4 {[%emt 0:04:38]} (22... Rad8 $142) 23. Ne3 $16 {[%emt 0:04:50][%csl LRc4,LRd5]} Ra5 {[%emt 0:00:19]} 24. Ng5 {[%emt 0:00:06] Pair of Knights!} (24. Rc1 $16) 24... Nc7 $11 {[%emt 0:05:04]} 25. Ng2 {[%emt 0:25:32]} Nd5 {[%emt 0:00:13]} 26. Qc1 {[%emt 0:00:01]} (26. Nxh4 Nxf4 27. Ng2 Nd3 $17) 26... Qh6 {[%emt 0:00:11]} 27. f4 {[%emt 0:00:02]} (27. h4 $11 {keeps the balance.}) 27... Bxg4 $17 {[%emt 0:03:24]} 28. Re1 {[%emt 0:00:02]} c3 {[%emt 0:01:15]} (28... Rxa2 29. Qxc4 Ra5 30. Ne3 $14) 29. bxc3 {[%emt 0:00:21]} Nxc3 {[%emt 0:02:57]} (29... bxc3 $6 30. Ne3 Be6 31. Nxe6 fxe6 32. Nxd5 Rxd5 33. Qxc3 $15) 30. Ne3 {[%emt 0:00:42]} Bd7 {[%emt 0:01:05]} 31. Nc4 {[%emt 0:01:35]} (31. Nd1 $17 {was called for.} Nd5 32. Nxf7 Kxf7 33. e6+ Bxe6 34. Rxe6 (34. Qxc6 $2 Re8 $19)) 31... Rd5 $2 {[%emt 0:01:30]} (31... Nxa2 32. Qa1 $18) (31... Rxa2 $19 32. Rxa2 Nxa2) 32. Qe3 {[%emt 0:00:36]} (32. Nd6 $11) 32... Re8 {[%emt 0:02:08]} 33. a3 {[%emt 0:01:09]} a5 {[%emt 0:02:59]} (33... Qh5 $1 $17 {Hoping for ...Nd1.} 34. axb4 Nd1) 34. Nb6 $15 {[%emt 0:01:48]} f6 {[%emt 0:01:21] [#]} 35. Nf3 {[%emt 0:04:52]} (35. axb4 $1 $11 axb4 36. Nf3) 35... fxe5 {[%emt 0:00:24]} (35... Be6 $15 36. axb4 axb4 37. Nxd5 Bxd5) 36. Nxe5 $11 {[%emt 0:00:39]} Rd6 {[%emt 0:00:55]} 37. d5 {[%emt 0:08:22]} (37. axb4 $16 axb4 38. Nbxd7 Rxd7 39. Ng4 Rxe3 40. Nxh6+ Kg7 41. Rxe3 Kxh6 42. Re6) 37... Bf5 {[%emt 0:02:41] [#]} (37... Nxd5 38. Qc5 Nxb6 39. Qxd6 $16) (37... Qg7 $11) 38. Qc5 {[%emt 0:00:26]} (38. Ng4 $1 $16 {[%mdl 512]} Bxg4 (38... Qf8 39. Qxe8) 39. Qxe8+ Qf8 40. Qxf8+ (40. dxc6 Qxe8 41. Rxe8+ Kf7 $11) 40... Kxf8 41. Nc4 Rxd5 42. axb4 axb4 43. Ne3) 38... Rdd8 {[%emt 0:02:10][%cal Rc6d5]} 39. dxc6 {[%emt 0:00:16]} Qh4 $1 {[%emt 0:01:54][%cal Od8d2]} 40. c7 {[%emt 0:00:00]} Rd2 {[%emt 0:00:00][%cal Oe8e5] Threatens to win with ...Rxe5!} 41. Ref1 {[%emt 0:07:46] Chess con chili.} (41. axb4 $2 Rxe5 $1 {[%mdl 512]} 42. c8=Q+ Bxc8 43. Qxc8+ Kg7 $19) 41... Rxf2 {[%emt 0:12:27]} (41... Ne2+ $2 42. Rxe2 $1 {[%mdl 512]} Rxe2 43. Qc4+ Kg7 44. Qxe2 $18) (41... Ne4 $5 42. Qc4+ (42. Qc6 $2 Rxf2 43. Qxe8+ Kg7 $19) 42... Kg7 43. Qf7+ (43. axb4 Rxf2 44. Qf7+ Kh6) (43. Rxd2 Nxd2 44. Qf7+ Kh6 $11) 43... Kh6 44. Rxd2 Nxd2 45. Qxe8 Nxf1 $11) 42. Rxf2 {[%emt 0:00:01]} Ne4 {[%emt 0:02:29]} (42... Kg7 $1 $11 43. Qd4 (43. axb4 $2 Ne4 $19) 43... Nb5) 43. Qd5+ $1 $40 {[%emt 0:00:02][%mdl 128] White is up to no good.} Kg7 $1 {[%emt 0:06:18]} (43... Kh8 44. Rf1 $16) 44. Rf1 {[%emt 0:07:48] And now Qf7+ would win.} Qf6 {[%emt 0:07:24] [#] Against Qf7+} 45. c8=N {[%emt 0:04:50] 0x0.00199249e77fdp-1022s more active pieces.} (45. Qxa5 $6 bxa3 46. Qa7 Bc8 $11) (45. Qb7 $1 $16 Qe7 46. c8=Q Bxc8 47. Qxe7+ Rxe7 48. Nxc8) 45... Nc3 $2 {[%emt 0:02:44][%mdl 8192]} (45... b3 $1 $11) 46. Nd6 $18 {[%emt 0:01:57]} ({Don't go for} 46. Qxa5 $2 Ne2+ 47. Kg2 Be4+ 48. Kf2 (48. Nf3 $2 Nxf4+ 49. Kg3 Nh5+ 50. Qxh5 gxh5 $19) 48... Qxf4+ 49. Kxe2 {[#]} Bf3+ $1 {[%mdl 512]} 50. Rxf3 Rxe5+ 51. Qxe5+ Qxe5+ 52. Re3 Qb2+ 53. Kd3 bxa3 54. Re7+ Kh6 $19) 46... Rd8 {[%emt 0:00:43]} (46... Re7 47. Qc5 (47. Qxa5 Ne2+ 48. Kg2 Qxd6 $15) 47... Bh3) 47. Qb7+ $2 {[%emt 0:05:35]} (47. Nxf5+ gxf5 48. Qb7+ Kg8 49. Kh1) 47... Kg8 {[%emt 0:00:14]} 48. Ndf7 {[%emt 0:01:46][%mdl 8192]} (48. Nxf5 $18 {was the only winning move. Intending Nh6+ and mate.} Qxf5 49. Nbd7) 48... Be4 $19 {[%emt 0:00:46] ( -> ...Ne2+)} 49. Nbd7 {[%emt 0:09:38]} (49. Nd5 $142 Bxd5 50. Nh6+ Kh8 51. Qc7) 49... Ne2+ {[%emt 0:01:41]} (49... Bxb7 $2 50. Nxf6+ Kf8 51. Nxd8 $18) 50. Kf2 {[%emt 0:00:01]} Qh4+ {[%emt 0:00:19][%mdl 32768] Both players deserved the win here.  Weighted Error Value: White=0.73/Black=0.46. An unexpected result.} ({Weaker is} 50... Bxb7 51. Nxf6+ Kg7 52. Nxd8 $18) 1/2-1/2

[Event "3rd Tal Heraklion-IM 2022"]
[Site "Heraklion"]
[Date "2022.04.29"]
[Round "4.1"]
[White "Kotsinis, Alexandros"]
[Black "Milonakis, Georgios"]
[Result "0-1"]
[ECO "E06"]
[WhiteElo "2055"]
[BlackElo "2215"]
[Annotator "TA"]
[PlyCount "60"]
[EventDate "2022.04.18"]
[EventType "tourn"]
[EventCountry "GRE"]
[SourceTitle "playchess.com"]
[Source "ChessBase"]
[SourceQuality "1"]
[TimeControl "40/5400+30:1800+30"]

{[%evp 12,60,16,15,24,21,10,0,25,0,15,9,0,0,0,0,0,0,0,0,0,0,21,8,41,0,29,0,0,-81,-83,-78,-94,-110,-104,-108,-112,-100,-101,-115,-111,-118,-117,-155,-149,-134,-178,-286,-300,-761,-725]} 1. d4 {[%emt 0:00:43]} d5 {[%emt 0:00:27]} 2. c4 {[%emt 0:00:07]} e6 {[%emt 0:00:05]} 3. Nf3 {[%emt 0:00:05]} Nf6 {[%emt 0:00:18]} 4. g3 {[%emt 0:00:02]} Be7 {[%emt 0:00:20]} 5. Bg2 {[%emt 0:00:04]} O-O {[%emt 0:00:22]} 6. Qc2 {[%emt 0:00:34]} dxc4 {[%emt 0:03:35]} 7. Qxc4 {[%emt 0:00:04]} b6 {[%emt 0:05:02] E06: Closed Catalan: Early deviations.} 8. Ne5 {[%emt 0:10:00]} Nd5 {[%emt 0:01:29]} 9. O-O {[%emt 0:01:44]} Ba6 {[%emt 0:03:49] The position is equal.} 10. Qc2 {[%emt 0:05:15]} Bb7 {[%emt 0:01:27]} 11. a3 {[%emt 0:02:27]} c5 {[%emt 0:04:41] [#]} 12. e4 $146 {[%emt 0:10:23]} ({Predecessor:} 12. dxc5 Bxc5 13. Nd3 Be7 14. Rd1 Nd7 15. e4 Rc8 16. Qe2 N5f6 17. Nc3 Qc7 18. e5 {1-0 (45) Namini,A (2218)-Bick,J (2155) Stockholm 2019}) 12... Nf6 {[%emt 0:02:59]} 13. dxc5 {[%emt 0:01:46]} Qc7 {[%emt 0:11:48] Prevents c6.} 14. Nc4 {[%emt 0:17:25]} Qxc5 {[%emt 0:04:01]} 15. b4 {[%emt 0:20:32]} Qh5 {[%emt 0:01:19]} 16. Nbd2 {[%emt 0:00:31]} Nbd7 {[%emt 0:04:46]} 17. Bb2 {[%emt 0:02:22]} Rac8 {[%emt 0:02:58] [#] aiming for ...b5.} (17... a5 $5 {[%cal Ra5b4]}) 18. Qb3 {[%emt 0:03:56]} b5 {[%emt 0:04:57]} 19. Ne3 {[%emt 0:07:12]} (19. Na5 $5 {[%cal Ra5b7]} Ba8 20. Rac1 $11) 19... Rfd8 $40 {[%emt 0:01:47][%mdl 128] Black mounts an attack.} 20. Rfd1 {[%emt 0:08:44]} (20. Rfc1 $11) 20... Ne5 $17 {[%emt 0:04:00] Threatens to win with ...Rd3.} 21. Bxe5 {[%emt 0:00:56]} Qxe5 {[%emt 0:00:14]} 22. f4 {[%emt 0:04:36]} Qc3 {[%emt 0:12:12] Black is more active.} 23. e5 {[%emt 0:01:39]} Bxg2 {[%emt 0:04:17]} ({Don't take} 23... Rxd2 24. Qxc3 Rxg2+ 25. Nxg2 $14) 24. Qxc3 {[%emt 0:00:34]} Rxc3 {[%emt 0:00:04]} 25. exf6 {[%emt 0:00:12]} Bxf6 {[%emt 0:00:21]} (25... Rxe3 $2 26. fxe7 Re8 27. Kxg2 $18) 26. Nxg2 {[%emt 0:00:58] Ne1 is the strong threat.} Rcd3 $1 {[%emt 0:00:15][%csl LRa1,LRd2]} 27. Rac1 {[%emt 0:00:32]} Rxd2 {[%emt 0:01:02]} 28. Rxd2 {[%emt 0:00:01]} Rxd2 {[%emt 0:00:09]} 29. Ne3 {[%emt 0:01:03]} (29. Rc8+ {was called for.} Rd8 30. Rxd8+ Bxd8 31. Ne1) 29... h5 $19 {[%emt 0:01:35] Strongly threatening ...Bd4.} 30. Rc2 $2 {[%emt 0:00:22] [#]} (30. Ng2) 30... Bd4 $1 {[%emt 0:03:48][%mdl 512] Weighted Error Value: White=0.39/Black=0.05 (flawless)} 0-1